bitfinex-derivatives/quotes_SOLF0:USTF0_20260310
["timestamp","ask_amount","ask_price","bid_price","bid_amount"]
[1773172724018,8.81753928,85.998,85.963,10.469]
[1773172724219,8.81753928,85.997,85.963,10.469]
[1773172724419,8.81753928,85.996,85.963,10.469]
[1773172724718,8.81753928,85.995,85.963,10.469]
[1773172724915,8.81753928,85.994,85.963,10.469]
[1773172725116,8.81753928,85.993,85.963,10.469]
[1773172725317,14.42838308,85.999,85.963,10.469]
[1773172725519,3.96530065,85.997,85.963,10.469]
[1773172725714,8.82455554,85.996,85.963,10.469]
[1773172725912,8.82455554,85.995,85.963,10.469]
[1773172726221,8.82455554,85.994,85.963,10.469]
[1773172726422,8.82455554,85.993,85.963,10.469]
[1773172726623,3.96530065,85.997,85.963,10.469]
[1773172726824,8.82544912,85.996,85.963,10.469]
[1773172727020,8.82544912,85.995,85.963,10.469]
[1773172727219,3.96530065,85.997,85.963,10.469]
[1773172727421,8.82512892,85.996,85.969,10.468]
[1773172727621,3.96530065,85.997,85.969,10.468]
[1773172727923,8.82490428,85.996,85.969,10.468]
[1773172728123,8.82490428,85.995,85.969,10.468]
[1773172728325,3.96530065,85.997,85.969,10.468]
[1773172728524,8.82514211,85.996,85.969,10.468]
[1773172728720,3.96530065,85.997,85.969,10.468]
[1773172728921,8.82492168,85.996,85.969,10.468]
[1773172729127,8.83116132,85.995,85.969,10.468]
[1773172729327,8.83116132,85.994,85.969,10.468]
[1773172729525,8.83116132,85.993,85.969,10.468]
[1773172729730,3.96530065,85.997,85.969,10.468]
[1773172729931,8.83116132,85.996,85.969,10.468]
[1773172730126,8.83116132,85.995,85.969,10.468]
[1773172730332,8.83116132,85.994,85.969,10.468]
[1773172730531,8.83116132,85.993,85.969,10.468]
[1773172730736,8.83523557,85.992,85.951,3.92539585]
[1773172730932,3.78504623,85.999,85.951,3.92539585]
[1773172731134,8.83471788,85.998,85.951,3.92539585]
[1773172731331,8.8346951,85.997,85.951,3.92539585]
[1773172731533,8.8346951,85.996,85.951,3.92539585]
[1773172731832,3.78504623,85.999,85.951,3.92539585]
[1773172732028,8.8346951,85.998,85.951,3.92539585]
[1773172732234,8.8346951,85.997,85.951,3.92539585]
[1773172732534,8.8346951,85.996,85.97,10.468]
[1773172732734,3.78504623,85.999,85.97,10.468]
[1773172732934,8.83451284,85.998,85.97,10.468]
[1773172733235,8.83451284,85.997,85.97,10.468]
[1773172733436,3.78504623,85.999,85.97,10.468]
[1773172733632,8.83422074,85.998,85.97,10.468]
[1773172733934,8.83422074,85.997,85.97,10.468]
[1773172734135,8.83422074,85.996,85.97,10.468]
[1773172734436,3.78504623,85.999,85.97,10.468]
[1773172734636,8.83421251,85.998,85.97,10.468]
[1773172734836,8.83421251,85.997,85.97,10.468]
[1773172735135,8.83421251,85.996,85.97,10.468]
[1773172735337,8.8348046,85.995,85.97,10.468]
[1773172735529,3.78504623,85.999,85.97,10.468]
[1773172735736,8.8348046,85.998,85.97,10.468]
[1773172735932,3.78504623,85.996,85.963,10.469]
[1773172736137,3.78504623,85.994,85.963,10.469]
[1773172736336,12.61985083,85.993,85.963,10.469]
[1773172736537,8.8348046,85.992,85.963,10.469]
[1773172736838,8.8348046,85.991,85.963,10.469]
[1773172737034,8.8348046,85.99,85.963,10.469]
[1773172737234,8.8348046,85.989,85.963,10.469]
[1773172737534,8.8348046,85.988,85.963,10.469]
[1773172737736,8.8348046,85.987,85.963,10.469]
[1773172737936,3.78504623,85.993,85.963,10.469]
[1773172738136,8.83469148,85.992,85.963,10.469]
[1773172738439,10.79790584,86.024,85.971,3.92539585]
[1773172738634,8.83250538,86.023,85.991,3.92539585]
[1773172738834,10.79790584,86.05,86.014,3.92539585]
[1773172739033,10.79790584,86.058,86.014,3.92539585]
[1773172739241,10.456,86.063,86.014,3.92539585]
[1773172739539,3.46212692,86.08,86.031,3.92539585]
[1773172739840,21.59581168,86.104,86.031,3.92539585]
[1773172739841,3.78504623,86.069,86.031,3.92539585]
[1773172740133,3.78504623,86.069,86.02,3.46212692]
[1773172740134,3.78504623,86.069,86.021,3.92539585]
[1773172740338,3.78504623,86.069,86.033,10.46]
[1773172740636,3.78504623,86.081,86.033,3.92539585]
[1773172740837,3.78504623,86.079,86.033,3.92539585]
[1773172741033,10.455,86.078,86.034,10.46]
[1773172741241,3.78504623,86.078,86.034,10.46]
[1773172741733,3.78504623,86.069,86.034,10.46]
[1773172741935,3.78504623,86.069,86.025,10.461]
[1773172742134,3.78504623,86.049,86.006,3.92539585]
[1773172742339,3.78504623,86.049,85.964,20.937]
[1773172742340,3.46212692,86.04,85.991,3.92539585]
[1773172743237,21.59581168,86.096,85.991,3.92539585]
[1773172743238,3.46212692,86.03,85.991,3.92539585]
[1773172743439,3.46212692,86.04,85.999,3.92539585]
[1773172744238,3.46212692,86.03,85.985,3.92539585]
[1773172744535,3.76227881,86.035,85.991,3.92539585]
[1773172745237,3.76227881,86.019,85.971,3.92539585]
[1773172745443,3.46212692,86.01,85.971,3.92539585]
[1773172746242,3.76227881,86.019,85.974,10.467]
[1773172746443,3.46212692,86.01,85.974,10.467]
[1773172747039,3.76227881,86.019,85.974,10.467]
[1773172748448,10.462,86.016,85.971,3.92539585]
[1773172748649,3.46212692,86.01,85.971,3.92539585]
[1773172748845,3.46212692,86.01,85.973,3.92539585]
[1773172750050,3.76227881,86.019,85.973,3.92539585]
[1773172750346,3.76227881,86.019,85.974,10.467]
[1773172751648,3.76227881,86.019,85.974,14.39239585]
[1773172751846,3.76227881,86.019,85.978,3.92539585]
[1773172752148,3.59392391,86.018,85.978,3.92539585]
[1773172752346,3.46212692,86.01,85.978,3.92539585]
[1773172753251,3.59392391,86.018,85.981,14.39139585]
[1773172755252,3.59392391,86.018,85.987,10.466]
[1773172755552,3.59392391,86.018,85.981,3.92539585]
[1773172756452,3.59392391,86.018,85.939,20.943]
[1773172756453,3.46212692,86.01,85.969,3.92539585]
[1773172756750,3.59392391,86.018,85.969,3.92539585]
[1773172756952,3.46212692,86.01,85.972,10.467]
[1773172757142,3.46212692,86.01,85.972,14.39239585]
[1773172758251,3.56785301,85.999,85.965,10.468]
[1773172759454,20.918,86.042,85.972,4.00513941]
[1773172759455,3.46212692,86.01,85.972,4.00513941]
[1773172759751,3.56901391,86.009,85.961,4.00513941]
[1773172759950,3.46212692,86.0,85.961,4.00513941]
[1773172760153,3.56901391,86.009,85.961,4.00513941]
[1773172760351,3.46212692,86.0,85.967,10.468]
[1773172760552,3.56901391,86.009,85.967,10.468]
[1773172761153,3.46212692,86.0,85.961,4.00513941]
[1773172761351,3.46212692,85.99,85.949,4.00513941]
[1773172761555,3.46247652,85.99,85.949,4.00513941]
[1773172761854,3.59677074,85.995,85.958,10.469]
[1773172762255,3.46247652,85.99,85.949,4.00513941]
[1773172763457,3.46247652,85.99,85.951,10.47]
[1773172763757,3.61805726,85.989,85.951,10.47]
[1773172764259,3.61805726,86.003,85.956,4.00513941]
[1773172764455,3.46247652,86.0,85.956,4.00513941]
[1773172764956,3.61805726,85.989,85.941,4.00513941]
[1773172765752,3.61805726,85.989,85.95,10.47]
[1773172766149,3.46247652,86.0,85.951,4.00513941]
[1773172766353,3.61795262,85.999,85.957,4.00513941]
[1773172766553,3.61795262,85.989,85.945,4.00513941]
[1773172768561,10.466,85.988,85.946,10.471]
[1773172769059,3.61795262,85.989,85.947,4.00513941]
[1773172770053,10.465,85.997,85.95,3.46247652]
[1773172770259,3.46247652,86.0,85.951,4.00513941]
[1773172770454,3.63900955,85.999,85.951,4.00513941]
[1773172771261,3.63900955,85.992,85.951,4.00513941]
[1773172771563,3.46247652,86.0,85.951,4.00513941]
[1773172771957,3.6260806,85.999,85.951,4.00513941]
[1773172772458,10.465,85.995,85.952,4.00513941]
[1773172773360,10.465,85.995,85.953,10.47]
[1773172773765,10.465,85.989,85.952,4.00513941]
[1773172773965,3.46247652,85.99,85.952,4.00513941]
[1773172774360,3.58601967,85.994,85.952,4.00513941]
[1773172774555,10.465,85.99,85.952,14.47513941]
[1773172775769,3.58612927,85.989,85.952,14.47513941]
[1773172776064,3.58612927,85.989,85.954,10.47]
[1773172777366,3.58612927,85.989,85.953,4.00513941]
[1773172779568,13.92647652,86.0,85.954,4.00513941]
[1773172780064,10.465,85.994,85.958,4.00513941]
[1773172780265,20.922,86.028,85.903,21.62391805]
[1773172780266,3.5881128,85.989,85.931,4.00513941]
[1773172780670,3.5881128,85.988,85.945,4.00513941]
[1773172782167,3.46247652,85.99,85.945,4.00513941]
[1773172782367,3.66136722,85.989,85.945,4.00513941]
[1773172783471,3.46247652,86.0,85.947,4.00513941]
[1773172783671,3.66747815,85.999,85.951,4.00513941]
[1773172784067,3.66747815,85.998,85.956,10.469]
[1773172784467,3.66747815,85.998,85.951,4.00513941]
[1773172785270,3.66747815,86.009,85.961,4.00513941]
[1773172785468,3.6656182,85.999,85.961,4.00513941]
[1773172786474,14.1306182,85.997,85.961,4.00513941]
[1773172787474,3.46247652,86.0,85.97,3.89893088]
[1773172787672,3.46247652,86.02,85.97,3.89893088]
[1773172787977,8.72777328,86.019,85.971,3.89893088]
[1773172788276,10.462,86.015,85.976,3.89893088]
[1773172788779,8.74539386,86.034,85.981,3.89893088]
[1773172789078,8.74539386,86.033,85.981,3.89893088]
[1773172789278,8.74539386,86.032,85.981,3.89893088]
[1773172789470,3.46247652,86.03,85.989,14.35089996]
[1773172789674,3.81396329,86.058,86.011,3.81833384]
[1773172789875,3.81396329,86.039,85.961,3.81833384]
[1773172790071,3.46247652,86.03,85.991,3.81833384]
[1773172790373,3.81396329,86.039,85.991,3.81833384]
[1773172790573,3.81396329,86.019,85.965,3.81833384]
[1773172790772,3.81396329,86.009,85.965,3.81833384]
[1773172790977,3.46247652,86.02,85.971,3.81833384]
[1773172791376,21.60343799,86.066,85.935,20.944]
[1773172791377,3.46247652,86.03,85.981,3.81833384]
[1773172791575,3.46247652,86.02,85.981,3.81833384]
[1773172792475,3.46247652,86.03,85.986,3.79901398]
[1773172792876,3.81396329,86.029,85.986,3.79901398]
[1773172793079,7.27643981,86.02,85.984,10.466]
[1773172793282,7.27643981,86.02,85.935,20.944]
[1773172793283,3.46247652,86.01,85.961,3.79901398]
[1773172793580,3.81396329,86.009,85.961,3.79901398]
[1773172794275,3.81396329,86.009,85.907,28.74728474]
[1773172794276,3.81396329,85.999,85.932,3.81680689]
[1773172794482,3.46247652,86.0,85.859,50.28477049]
[1773172794483,7.27643981,85.99,85.941,3.81680689]
[1773172795382,3.46247652,85.98,85.941,3.81680689]
[1773172795582,3.81396329,85.989,85.941,3.81680689]
[1773172795978,3.46247652,86.0,85.949,3.64219897]
[1773172796173,3.46247652,85.98,85.91,21.62391805]
[1773172796375,3.46247652,85.97,85.931,3.64219897]
[1773172796783,3.81396329,85.979,85.931,3.64219897]
[1773172796984,3.81396329,85.979,85.94,10.471]
[1773172797278,3.46247652,85.99,85.941,3.64219897]
[1773172797680,3.46247652,85.99,85.949,3.60298719]
[1773172798284,3.81396329,85.992,85.949,3.60298719]
[1773172798483,3.46247652,85.99,85.949,3.60298719]
[1773172799379,3.81396329,86.023,85.959,3.60298719]
[1773172799580,3.46247652,86.0,85.959,3.60298719]
[1773172799979,3.81396329,85.999,85.959,3.60298719]
[1773172800178,3.81396329,85.999,85.961,10.469]
[1773172800375,3.81396329,85.988,85.911,3.59946771]
[1773172800580,3.46247652,85.98,85.931,3.59946771]
[1773172800776,3.46247652,85.97,85.931,3.59946771]
[1773172800981,3.46247652,85.96,85.901,3.59946771]
[1773172801380,3.46247652,85.99,85.931,3.67077482]
[1773172801687,3.81396329,85.979,85.931,3.67077482]
[1773172802283,3.46247652,85.97,85.931,3.67077482]
[1773172802586,3.81396329,85.979,85.942,10.471]
[1773172802886,3.81396329,85.979,85.931,3.67077482]
[1773172803989,3.81396329,85.979,85.942,10.471]
[1773172804288,3.81396329,85.979,85.931,3.67077482]
[1773172804685,3.46247652,85.99,85.941,3.58752599]
[1773172804887,3.81396329,85.995,85.941,3.58752599]
[1773172805288,3.46247652,85.98,85.941,3.58752599]
[1773172805481,3.46247652,85.98,85.951,10.47]
[1773172806092,3.46247652,85.99,85.951,10.47]
[1773172806291,3.46247652,85.99,85.886,20.956]
[1773172806292,3.81396329,86.008,85.961,3.58367605]
[1773172806483,3.81396329,85.999,85.95,3.46247652]
[1773172806889,3.46247652,85.99,85.958,10.469]
[1773172807893,3.81396329,85.999,85.966,10.468]
[1773172808091,3.46247652,85.99,85.966,10.468]
[1773172808792,3.81396329,85.999,85.966,10.468]
[1773172809193,3.81396329,86.015,85.974,10.467]
[1773172809394,3.81396329,86.015,85.971,3.58227456]
[1773172810284,3.81396329,86.009,85.958,3.58289016]
[1773172810984,3.81396329,86.009,85.961,3.58289016]
[1773172811292,3.46247652,86.02,85.971,3.58289016]
[1773172812593,3.81396329,86.037,85.981,3.6619199]
[1773172812792,3.81396329,86.037,85.98,3.46247652]
[1773172812793,8.70723177,86.036,85.991,3.6619199]
[1773172812994,8.70723177,86.049,85.991,3.6619199]
[1773172813194,3.46247652,86.04,85.991,3.6619199]
[1773172813394,8.70723177,86.039,86.004,10.464]
[1773172813594,8.70723177,86.05,86.005,3.66545662]
[1773172813795,3.46247652,86.04,86.005,3.66545662]
[1773172813990,3.81396329,86.039,85.99,3.46247652]
[1773172814192,3.46247652,86.03,85.986,3.66545662]
[1773172814395,3.81396329,86.039,85.986,3.66545662]
[1773172814800,3.81396329,86.039,86.003,10.464]
[1773172815992,3.46247652,86.05,86.001,3.69960931]
[1773172816192,3.81396329,86.054,86.011,3.69960931]
[1773172816793,7.27643981,86.05,86.015,10.462]
[1773172816994,7.27643981,86.05,85.996,3.69960931]
[1773172816995,3.81396329,86.049,85.996,3.69960931]
[1773172817594,3.81396329,86.049,86.0,3.46247652]
[1773172817893,3.81396329,86.049,85.94,197.804]
[1773172817894,3.46247652,86.03,85.981,3.69488679]
[1773172818099,14.43392743,86.08,85.981,3.69488679]
[1773172818100,3.46247652,86.02,85.981,3.69488679]
[1773172818395,3.46247652,86.01,85.976,10.467]
[1773172819098,3.46247652,86.0,85.966,10.468]
[1773172819493,3.81396329,86.009,85.964,3.69488679]
[1773172819689,3.46247652,86.0,85.964,3.69488679]
[1773172819894,3.81396329,86.009,85.964,3.69488679]
[1773172820494,3.46247652,86.02,85.971,3.70111725]
[1773172820993,3.46247652,86.02,85.98,10.466]
[1773172821300,3.46247652,86.01,85.98,10.466]
[1773172822100,3.46247652,86.02,85.987,10.466]
[1773172822797,7.1357526,86.01,85.955,3.74712662]
[1773172823001,7.1357526,86.01,85.902,28.91844125]
[1773172823002,3.46247652,85.99,85.94,3.46247652]
[1773172823398,3.46247652,85.99,85.941,3.74712662]
[1773172823701,3.46251065,85.99,85.941,3.74712662]
[1773172824403,3.46251065,85.99,85.961,10.469]
[1773172825204,3.67327608,85.999,85.961,10.469]
[1773172825703,3.46251065,85.99,85.961,10.469]
[1773172826603,3.67327608,85.999,85.961,10.469]
[1773172828101,3.67327608,85.999,85.969,10.468]
[1773172828306,3.46251065,86.0,85.969,10.468]
[1773172829707,3.46251065,86.01,85.976,10.467]
[1773172830700,3.46251065,86.02,85.976,14.25198794]
[1773172830907,3.46251065,86.02,85.981,10.466]
[1773172831708,3.46251065,86.02,85.99,10.465]
[1773172831904,3.46251065,86.02,85.977,3.78498794]
[1773172832105,3.46251065,86.02,85.983,10.466]
[1773172833603,3.46251065,86.02,85.99,10.465]
[1773172833803,3.46251065,86.02,85.977,3.78498794]
[1773172835499,3.46251065,86.02,85.983,10.466]
[1773172836809,3.67327608,86.019,85.983,10.466]
[1773172837109,3.46251065,86.01,85.983,10.466]
[1773172837909,3.67327608,86.019,85.983,10.466]
[1773172839511,3.67327608,86.019,85.99,10.465]
[1773172840614,3.46251065,86.03,85.996,10.465]
[1773172843911,3.67327608,86.029,85.996,10.465]
[1773172844114,3.46251065,86.02,85.989,10.465]
[1773172845309,3.46251065,86.02,85.996,10.465]
[1773172845510,3.46251065,86.02,85.935,21.62391805]
[1773172845511,3.46251065,86.04,85.991,3.68592742]
[1773172845710,3.46251065,86.05,86.001,3.68592742]
[1773172847307,3.46251065,86.05,86.019,10.462]
[1773172847508,3.46251065,86.05,86.001,3.68592742]
[1773172847509,3.71971954,86.059,86.001,3.68592742]
[1773172848408,3.71971954,86.059,86.025,10.461]
[1773172848607,3.46251065,86.06,86.001,3.68592742]
[1773172848608,8.69071453,86.075,86.031,3.6563783]
[1773172848811,3.46251065,86.06,86.011,3.6563783]
[1773172849813,3.46251065,86.06,86.033,10.46]
[1773172850312,3.71971954,86.069,86.021,3.68065586]
[1773172850820,7.39432915,86.05,86.007,3.68065586]
[1773172851013,3.46251065,86.04,85.993,3.68065586]
[1773172851815,3.9318185,86.049,85.993,3.68065586]
[1773172852017,3.46251065,86.05,85.993,3.68065586]
[1773172852919,3.46251065,86.04,86.007,10.463]
[1773172854512,3.46251065,86.04,86.014,10.462]
[1773172854713,3.9318185,86.049,86.014,10.462]
[1773172855112,3.46251065,86.05,86.021,10.461]
[1773172855413,3.9318185,86.063,86.011,3.81868957]
[1773172855816,3.46251065,86.06,86.011,3.81868957]
[1773172856016,7.39432915,86.06,86.011,3.81868957]
[1773172856216,7.39432915,86.06,86.021,10.461]
[1773172856616,3.46251065,86.05,86.021,10.461]
[1773172857221,3.46251065,86.05,86.027,10.461]
[1773172857420,7.39432915,86.06,86.027,10.461]
[1773172858318,3.46251065,86.05,86.02,10.462]
[1773172858513,7.39432915,86.05,86.02,10.462]
[1773172859018,3.46251065,86.05,86.02,10.462]
[1773172859218,3.46251065,86.06,86.011,3.81901314]
[1773172860321,3.46251065,86.06,86.025,10.461]
[1773172862918,3.46251065,86.06,86.031,10.46]
[1773172863521,3.9318185,86.078,86.03,3.46251065]
[1773172863824,3.9318185,86.078,86.031,3.84939542]
[1773172864620,3.9318185,86.078,86.048,10.458]
[1773172864820,3.9318185,86.089,86.048,10.458]
[1773172866420,3.46251065,86.08,86.048,10.458]
[1773172867123,3.46251065,86.08,85.98,34.91]
[1773172867124,3.46251065,86.1,86.043,3.84939542]
[1773172867724,7.39432915,86.1,86.043,3.84939542]
[1773172868022,3.9318185,86.089,86.043,3.84939542]
[1773172868421,10.79118932,86.12,86.043,3.84939542]
[1773172868422,3.9318185,86.095,86.058,10.457]
[1773172868627,3.46251065,86.09,86.058,10.457]
[1773172869625,3.9318185,86.089,86.051,10.458]
[1773172871323,3.9318185,86.089,86.042,3.78529165]
[1773172871524,7.39432915,86.1,86.057,3.77510667]
[1773172871730,3.46251065,86.1,86.057,3.77510667]
[1773172871926,3.9318185,86.127,86.085,3.77510667]
[1773172872332,3.46251065,86.13,86.085,3.77510667]
[1773172874034,7.39432915,86.14,86.085,3.77510667]
[1773172874534,7.39432915,86.14,86.097,10.452]
[1773172875132,3.9318185,86.129,86.07,7.28377597]
[1773172875329,3.46251065,86.12,86.071,3.82126532]
[1773172876435,3.46251065,86.12,86.081,10.454]
[1773172876639,3.9318185,86.129,86.082,3.83026255]
[1773172877234,3.46251065,86.12,86.082,3.83026255]
[1773172879035,3.46251065,86.12,86.083,10.454]
[1773172879231,3.46251065,86.12,86.07,3.46251065]
[1773172879534,7.1747628,86.11,86.069,14.31691983]
[1773172879739,10.45,86.12,86.069,14.31691983]
[1773172879740,3.46251065,86.12,86.069,3.86091983]
[1773172880439,3.46251065,86.11,86.074,10.455]
[1773172881540,3.46251065,86.1,86.069,3.86091983]
[1773172881741,3.46251065,86.1,86.066,10.456]
[1773172884239,3.71225215,86.107,86.05,3.46251065]
[1773172884240,3.71225215,86.107,86.07,10.456]
[1773172884543,3.46251065,86.11,86.071,3.86091983]
[1773172884940,3.46251065,86.1,86.063,10.456]
[1773172885536,3.4538719,86.1,86.063,10.456]
[1773172886142,3.4538719,86.1,86.064,3.86091983]
[1773172886945,3.4538719,86.1,86.05,3.4538719]
[1773172886946,3.4538719,86.1,86.065,14.31691983]
[1773172887146,3.71225215,86.109,86.066,3.86091983]
[1773172887347,3.4538719,86.11,86.066,3.86091983]
[1773172887846,3.4538719,86.11,86.074,10.455]
[1773172889647,3.71225215,86.109,86.061,3.86091983]
[1773172889840,3.71225215,86.089,86.048,3.86091983]
[1773172891444,3.71225215,86.089,86.052,10.458]
[1773172896756,3.4538719,86.09,86.056,10.457]
[1773172898252,3.4538719,86.09,86.053,3.86091983]
[1773172898849,7.16612405,86.09,86.053,3.86091983]
[1773172899651,3.4538719,86.08,86.053,3.86091983]
[1773172899853,3.4538719,86.08,86.041,3.86091983]
[1773172900354,3.71225215,86.089,86.041,3.86091983]
[1773172900557,3.4538719,86.1,86.05,3.4538719]
[1773172900748,3.71225215,86.097,86.051,3.86091983]
[1773172900952,3.4538719,86.09,86.051,3.86091983]
[1773172901151,3.4538719,86.09,86.052,10.458]
[1773172903053,3.4538719,86.09,86.052,14.31891983]
[1773172903256,3.4538719,86.09,86.053,3.86091983]
[1773172904346,3.4538719,86.09,86.056,10.457]
[1773172904657,14.16525215,86.096,86.056,14.31791983]
[1773172904856,10.453,86.094,86.057,3.86091983]
[1773172905158,3.4538719,86.09,86.057,3.86091983]
[1773172905357,3.4538719,86.08,86.045,3.86091983]
[1773172905556,3.71225215,86.078,86.031,3.86091983]
[1773172905755,3.4538719,86.07,86.031,3.86091983]
[1773172907453,3.4538719,86.07,86.033,10.46]
[1773172908058,3.4538719,86.06,86.027,10.461]
[1773172913860,3.4538719,86.06,86.02,10.462]
[1773172914159,3.8963064,86.049,86.001,3.90897907]
[1773172914755,3.4538719,86.04,86.001,3.90897907]
[1773172914951,3.4538719,86.02,85.989,3.90897907]
[1773172915158,3.4538719,86.02,85.971,3.90897907]
[1773172916363,3.4538719,86.02,85.976,3.90897907]
[1773172917466,3.4538719,86.02,85.979,10.467]
[1773172917665,3.4538719,86.02,85.979,14.37597907]
[1773172918170,3.4538719,86.02,85.98,3.90897907]
[1773172918667,3.4538719,86.04,85.991,3.90897907]
[1773172919267,3.4538719,86.05,86.002,3.90897907]
[1773172920374,3.4538719,86.05,86.005,3.90897907]
[1773172922180,3.4538719,86.04,86.001,10.464]
[1773172923174,3.8963064,86.029,85.971,3.90897907]
[1773172923379,3.4538719,86.02,85.971,3.90897907]
[1773172924075,3.4538719,86.02,85.982,10.466]
[1773172925380,3.4538719,86.02,85.986,10.466]
[1773172925680,14.3573064,86.029,85.986,10.466]
[1773172926069,3.4538719,86.03,85.991,3.90897907]
[1773172926588,3.4538719,86.04,85.993,3.90897907]
[1773172926881,7.3501783,86.06,86.011,3.90897907]
[1773172927981,3.4538719,86.05,86.012,10.463]
[1773172928576,10.457,86.058,86.012,10.463]
[1773172929076,8.64774627,86.096,85.982,3.90897907]
[1773172929077,3.4538719,86.02,85.982,3.90897907]
[1773172929477,3.8963064,86.029,85.982,3.90897907]
[1773172929872,3.4538719,86.01,85.967,3.90897907]
[1773172930982,3.8963064,86.017,85.967,3.90897907]
[1773172931584,3.4538719,86.01,85.967,3.90897907]
[1773172931783,3.8963064,86.017,85.967,3.90897907]
[1773172931984,3.4538719,86.02,85.971,3.90897907]
[1773172932284,3.4538719,86.02,85.989,10.465]
[1773172933583,3.4538719,86.02,85.982,10.466]
[1773172933984,3.4538719,86.02,85.971,3.90897907]
[1773172934178,14.3563064,86.03,85.988,14.37397907]
[1773172934179,7.3501783,86.03,85.988,14.37397907]
[1773172934384,7.3501783,86.03,85.989,3.90897907]
[1773172934988,7.3501783,86.03,85.993,10.465]
[1773172935182,3.4538719,86.04,85.994,3.90897907]
[1773172935488,3.8963064,86.046,85.994,3.90897907]
[1773172936384,3.8963064,86.046,86.003,10.464]
[1773172936788,3.8963064,86.046,85.99,3.4538719]
[1773172936789,3.8963064,86.046,86.004,3.90897907]
[1773172938584,3.8963064,86.046,86.005,10.463]
[1773172938790,3.8963064,86.046,85.938,34.91]
[1773172938791,3.8963064,86.039,85.991,3.90897907]
[1773172938988,3.8963064,86.029,85.976,3.90897907]
[1773172939793,3.8963064,86.029,85.981,3.78351579]
[1773172940186,3.4538719,86.04,85.991,3.78351579]
[1773172940382,7.32531781,86.03,85.991,3.78351579]
[1773172940791,3.87144591,86.029,85.98,3.4538719]
[1773172941493,3.87144591,86.029,85.983,10.466]
[1773172942584,3.87144591,86.029,85.988,10.466]
[1773172944592,3.87144591,86.029,85.992,3.78351579]
[1773172944798,3.87144591,86.044,85.992,3.78351579]
[1773172946398,3.87144591,86.044,86.005,10.463]
[1773172948793,10.459,86.043,85.997,10.464]
[1773172948998,10.459,86.043,85.952,20.94]
[1773172948999,3.87144591,86.042,85.971,3.78351579]
[1773172950390,9.26348627,86.06,85.952,20.94]
[1773172950391,3.87144591,86.039,85.99,10.465]
[1773172951400,3.87144591,86.037,85.99,10.465]
[1773172954401,10.46,86.035,85.99,10.465]
[1773172955705,14.33144591,86.035,85.99,10.465]
[1773172956407,3.87144591,86.034,85.99,10.465]
[1773172956604,3.87144591,86.032,85.985,3.78351579]
[1773172957006,3.87144591,86.03,85.982,10.466]
[1773172957205,3.87144591,86.028,85.982,10.466]
[1773172957403,3.87144591,86.026,85.982,10.466]
[1773172957606,3.87144591,86.024,85.982,10.466]
[1773172958301,8.69732053,86.023,85.982,10.466]
[1773172958504,14.33244591,86.024,85.982,14.24951579]
[1773172958704,14.33244591,86.024,85.986,10.466]
[1773172959608,10.461,86.022,85.983,3.78351579]
[1773172960702,3.87144591,86.016,85.964,3.78351579]
[1773172961706,3.46076416,86.01,85.964,3.78351579]
[1773172962410,3.46076416,86.01,85.977,10.467]
[1773172964308,7.33221007,86.01,85.97,3.78351579]
[1773172965309,7.33221007,86.01,85.971,10.468]
[1773172965511,7.33221007,86.01,85.971,14.25151579]
[1773172966412,7.33221007,86.01,85.978,10.467]
[1773172969515,7.33221007,86.01,85.972,3.8881672]
[1773172970316,3.99953512,86.009,85.973,10.467]
[1773172970515,3.46076416,86.0,85.961,3.88880487]
[1773172971312,3.46076416,86.0,85.965,10.468]
[1773172974417,3.46076416,86.0,85.965,14.29624713]
[1773172974709,3.46076416,86.0,85.967,3.82824713]
[1773172974909,3.99953512,86.008,85.967,3.82824713]
[1773172977411,3.99953512,86.004,85.967,3.82824713]
[1773172978121,3.99953512,85.999,85.966,10.468]
[1773172980115,10.465,85.997,85.959,10.469]
[1773172980518,3.99953512,85.996,85.959,10.469]
[1773172981517,3.99953512,85.989,85.949,3.90095819]
[1773172982322,3.99953512,85.986,85.949,14.37095819]
[1773172983622,3.46076416,85.98,85.949,3.90095819]
[1773172984421,3.99953512,85.979,85.942,10.471]
[1773172986417,3.46076416,85.99,85.951,3.90095819]
[1773172987423,7.46029928,85.99,85.953,10.47]
[1773172987619,3.99953512,85.989,85.951,3.90095819]
[1773172988024,3.46076416,85.98,85.951,3.90095819]
[1773172988226,3.46076416,85.98,85.946,10.471]
[1773172989127,3.99953512,85.979,85.946,10.471]
[1773172991928,3.99953512,85.979,85.931,3.90095819]